bitfinex-derivatives/quotes_SOLF0:USTF0_20241009
["timestamp","ask_amount","ask_price","bid_price","bid_amount"]
[1728468948897,8.2932,143.23,143.22,10.76]
[1728468949096,3.4932,143.23,143.22,10.76]
[1728468953297,4.8,143.24,143.22,10.76]
[1728468953530,8.293,143.24,143.22,10.76]
[1728468955708,3.493,143.24,143.22,10.76]
[1728468956616,1.3331,143.26,143.23,10.76]
[1728468956810,3.4932,143.25,143.23,10.76]
[1728468957210,4.8,143.26,143.23,10.76]
[1728468957409,8.2929,143.26,143.23,14.2533]
[1728468958712,3.4931,143.25,143.23,10.76]
[1728468960313,4.8,143.26,143.23,10.76]
[1728468960536,3.4932,143.24,143.23,10.76]
[1728468960813,15.56,143.26,143.21,210.88502]
[1728468961113,16.984,143.26,143.21,210.88502]
[1728468961305,3.4937,143.22,143.21,210.88502]
[1728468968923,3.4937,143.22,143.21,200.12502]
[1728468969111,3.4937,143.22,143.21,210.88502]
[1728468972722,3.4936,143.23,143.21,214.37902]
[1728468973138,3.4936,143.23,143.22,10.76]
[1728468973626,6.224,143.26,143.22,10.76]
[1728468973921,3.4933,143.24,143.22,14.2537]
[1728468975326,3.4933,143.24,143.22,10.76]
[1728468975626,3.4935,143.23,143.22,10.76]
[1728468977410,3.4933,143.24,143.22,10.76]
[1728468980327,8.2931,143.25,143.23,10.76]
[1728468981932,4.8,143.25,143.21,200.12502]
[1728468982114,3.4936,143.23,143.21,207.13485906]
[1728468982426,3.4936,143.23,143.22,10.76]
[1728468984326,3.4934,143.24,143.22,14.2537]
[1728468984523,4.8,143.25,143.22,14.2537]
[1728468985519,3.4932,143.24,143.22,14.2537]
[1728468988035,3.4932,143.24,143.23,10.76]
[1728468990438,3.4932,143.24,143.23,14.2535]
[1728468992135,3.4932,143.24,143.23,10.76]
[1728468993033,69.80730486,143.28,143.23,10.76]
[1728468993261,74.60730486,143.28,143.24,10.76]
[1728468993536,3.4926,143.27,143.25,3.4928]
[1728468993730,3.4926,143.27,143.26,10.76]
[1728468996227,69.79340644,143.3,143.26,14.2527]
[1728468996424,1.34,143.31,143.29,10.76]
[1728468996645,4.8,143.32,143.3,10.76]
[1728468998129,3.4918,143.3,143.29,10.76]
[1728469000335,3.4921,143.29,143.28,10.76]
[1728469003528,4.8,143.32,143.28,10.76]
[1728469003725,0.12502,143.33,143.29,10.76]
[1728469003927,4.90502,143.33,143.29,10.76]
[1728469004433,3.4916,143.31,143.29,10.76]
[1728469004736,0.12502,143.33,143.29,14.23183057]
[1728469005537,3.4913,143.32,143.29,17.72383057]
[1728469005839,0.12502,143.33,143.29,17.72383057]
[1728469007429,3.4915,143.31,143.29,17.72383057]
[1728469007633,3.4915,143.31,143.29,14.252]
[1728469010242,3.4918,143.3,143.29,10.76]
[1728469025452,3.4918,143.3,143.27,3.4924]
[1728469025766,0.12502,143.33,143.29,10.76]
[1728469026742,3.4918,143.3,143.29,10.76]
[1728469032860,0.12502,143.33,143.26,1.402]
[1728469033062,0.12502,143.33,143.29,10.76]
[1728469033856,3.4917,143.31,143.29,10.76]
[1728469034054,0.12502,143.33,143.29,10.76]
[1728469035962,3.4918,143.3,143.29,10.76]
[1728469045555,3.4927,143.27,143.24,8.2731]
[1728469045762,3.4927,143.27,143.26,10.76]
[1728469049559,3.4932,143.24,143.21,203.65104973]
[1728469049866,10.76,143.27,143.23,10.76]
[1728469050064,10.76,143.25,143.21,200.12502]
[1728469050267,15.54,143.25,143.21,200.12502]
[1728469050677,3.4937,143.22,143.21,200.12502]
[1728469050974,8.2737,143.22,143.21,200.12502]
[1728469061380,2.6704,143.26,143.21,210.88502]
[1728469061580,3.4935,143.23,143.21,200.12502]
[1728469063578,3.4935,143.23,143.22,10.76]
[1728469071876,3.4933,143.24,143.22,14.2536]
[1728469072118,3.4933,143.24,143.23,10.76]
[1728469073376,1.349,143.26,143.23,10.76]
[1728469073576,3.4931,143.25,143.23,10.76]
[1728469077483,3.4932,143.24,143.23,10.76]
[1728469079780,3.4936,143.23,143.22,10.76]
[1728469082891,3.4933,143.24,143.22,14.2536]
[1728469083085,3.4933,143.24,143.23,10.76]
[1728469083288,4.78,143.27,143.23,10.76]
[1728469083892,3.4932,143.24,143.23,14.2533]
[1728469084286,3.4932,143.24,143.23,10.76]
[1728469085995,3.4937,143.22,143.21,210.88502]
[1728469088790,3.4933,143.24,143.22,3.4937]
[1728469088990,4.78,143.27,143.23,10.76]
[1728469090102,3.4932,143.25,143.23,14.2534]
[1728469090700,3.4932,143.24,143.23,10.76]
[1728469111116,4.78,143.27,143.21,203.6613244]
[1728469111317,3.4933,143.24,143.23,10.76]
[1728469111506,4.78,143.27,143.24,196.5067]
[1728469112304,3.493,143.25,143.24,196.5067]
[1728469116309,4.8629,143.25,143.24,196.5067]
[1728469121924,15.6229,143.25,143.24,194.3368]
[1728469122125,16.9624,143.25,143.24,192.1669]
[1728469134432,4.78,143.27,143.25,175.2045]
[1728469134626,10.76,143.26,143.25,175.2045]
[1728469135239,14.2527,143.26,143.25,93.3845]
[1728469138432,14.2527,143.26,143.25,11.5645]
[1728469139532,15.6714,143.26,143.25,11.5645]
[1728469142282,1.4187,143.26,143.21,0.12502]
[1728469142537,3.4937,143.22,143.21,0.12502]
[1728469142725,8.2737,143.22,143.21,0.12502]
[1728469144836,3.4937,143.22,143.21,10.88502]
[1728469145036,3.4936,143.23,143.21,10.88502]
[1728469146129,4.78,143.24,143.21,0.12502]
[1728469147339,3.4937,143.22,143.21,0.12502]
[1728469158755,14.2537,143.22,143.21,2e-05]
[1728469158957,3.4949,143.17,143.16,1.3542]
[1728469169855,3.4952,143.16,143.15,0.12502]
[1728469171348,14.2552,143.16,143.15,0.12502]
[1728469171550,19.0352,143.16,143.15,0.12502]
[1728469176361,8.2752,143.16,143.15,0.12502]
[1728469176562,19.0352,143.16,143.15,0.12502]
[1728469176951,8.2752,143.16,143.15,0.12502]
[1728469177185,19.0352,143.16,143.15,0.12502]
[1728469187073,8.2752,143.16,143.15,0.12502]
[1728469187391,19.0352,143.16,143.15,0.12502]
[1728469190886,14.2552,143.16,143.15,0.12502]
[1728469191068,3.4952,143.16,143.15,0.12502]
[1728469191277,8.2952,143.16,143.15,0.12502]
[1728469192382,10.76,143.17,143.15,0.12502]
[1728469192580,4.8,143.16,143.15,0.12502]
[1728469193284,8.2952,143.16,143.15,0.12502]
[1728469194684,3.4952,143.16,143.15,0.12502]
[1728469202281,4.78,143.17,143.15,0.12502]
[1728469202591,3.495,143.17,143.15,3.62032]
[1728469203884,3.495,143.17,143.15,14.38032]
[1728469208001,3.4952,143.16,143.15,0.12502]
[1728469209510,3.4952,143.16,143.15,10.88502]
[1728469210596,3.4952,143.16,143.15,0.12502]
[1728469225706,1.4221,143.21,143.15,10.88502]
[1728469225902,15.56,143.2,143.15,10.88502]
[1728469226509,3.4951,143.17,143.15,10.88502]
[1728469228611,3.4951,143.17,143.15,14.38042]
[1728469229512,4.8,143.2,143.15,14.38042]
[1728469231112,3.4949,143.18,143.15,14.38042]
[1728469232310,3.4944,143.2,143.17,3.4948]
[1728469232612,4.8,143.19,143.16,10.76]
[1728469233118,4.8,143.19,143.16,14.2551]
[1728469233908,8.2946,143.19,143.16,14.2551]
[1728469235017,3.4946,143.19,143.16,14.2551]
[1728469235218,8.2946,143.19,143.16,14.2551]
[1728469235411,8.2943,143.2,143.18,10.76]
[1728469237218,4.8,143.2,143.18,10.76]
[1728469237405,3.4944,143.19,143.18,10.76]
[1728469239322,8.2943,143.2,143.18,10.76]
[1728469241221,3.4943,143.2,143.18,10.76]
[1728469241813,3.4943,143.2,143.19,10.76]
[1728469251217,3.495,143.17,143.15,0.12502]
[1728469252720,3.4952,143.16,143.15,0.12502]
[1728469254030,3.4952,143.16,143.15,10.88502]
[1728469261435,3.4952,143.16,143.15,0.12502]
[1728469268226,14.2552,143.16,143.15,0.12502]
[1728469274442,3.4966,143.1,143.09,0.12502]
[1728469274654,8.2966,143.1,143.09,0.12502]
[1728469278044,19.0566,143.1,143.09,0.12502]
[1728469278244,19.0566,143.1,143.03,0.12502]
[1728469278245,3.4979,143.05,143.03,0.12502]
[1728469278636,3.4979,143.05,143.03,10.88502]
[1728469278842,3.4981,143.04,143.03,0.12502]
[1728469279143,3.4981,143.04,143.03,10.88502]
[1728469279544,3.4981,143.04,143.03,0.12502]
[1728469285655,14.2581,143.04,143.03,0.12502]
[1728469285952,3.499,143.01,142.98,10.76]
[1728469286256,4.82,143.01,142.97,1.55322]
[1728469286658,4.82,143.01,142.98,10.76]
[1728469286967,8.319,143.01,142.98,10.76]
[1728469287152,4.82,143.01,142.98,10.76]
[1728469287358,4.82,143.01,142.97,5.05292]
[1728469287658,3.4991,143.0,142.98,10.76]
[1728469288350,3.4991,143.0,142.97,5.05292]
[1728469288551,3.4991,143.0,142.98,10.76]
[1728469288948,3.4994,142.99,142.97,5.05292]
[1728469289143,3.4994,142.99,142.97,15.81292]
[1728469290956,3.4994,142.99,142.98,10.76]
[1728469295957,3.4994,142.99,142.97,15.81292]
[1728469298853,3.4992,143.0,142.97,15.81292]
[1728469302056,14.2592,143.0,142.97,5.05292]
[1728469302355,14.2596,142.98,142.97,0.12502]
[1728469302660,19.0796,142.98,142.97,0.12502]
[1728469305359,22.61638191,142.98,142.97,0.12502]
[1728469316764,3.4996,142.98,142.97,0.12502]
[1728469316962,4.86,142.98,142.97,0.12502]
[1728469317672,8.3596,142.98,142.97,0.12502]
[1728469319773,4.86,142.98,142.97,0.12502]
[1728469319971,4.86,142.98,142.97,3.62482]
[1728469320668,4.86,142.98,142.97,0.12502]
[1728469320969,3.4993,143.0,142.97,0.12502]
[1728469321177,4.86,142.99,142.97,0.12502]
[1728469321881,4.86,142.99,142.97,3.62482]
[1728469323377,3.4992,143.0,142.98,3.4996]
[1728469323378,8.3592,143.0,142.98,3.4996]
[1728469323877,4.86,143.0,142.98,3.4996]
[1728469324974,69.93652758,143.03,142.98,10.76]
[1728469325279,69.93652758,143.03,142.99,10.76]
[1728469325280,4.86,143.02,142.99,10.76]
[1728469325773,8.3587,143.02,142.99,14.2592]
[1728469326075,8.3587,143.02,142.99,10.76]
[1728469326275,4.86,143.02,143.0,3.499]
[1728469326870,4.86,143.02,142.99,10.76]
[1728469327071,8.3587,143.02,142.99,14.2592]
[1728469327382,4.86,143.03,142.99,10.76]
[1728469328581,3.4986,143.02,143.0,3.499]
[1728469328966,3.4986,143.02,142.98,14.17975578]
[1728469329169,10.76,142.99,142.91,0.12502]
[1728469329375,10.76,142.93,142.91,0.12502]
[1728469329778,3.501,142.92,142.91,0.12502]
[1728469334375,14.261,142.92,142.91,0.12502]
[1728469338986,3.502,142.88,142.87,1.4436]
[1728469339178,14.262,142.88,142.87,1.4436]
[1728469339380,4.96,142.91,142.85,0.12502]
[1728469339572,3.5025,142.86,142.85,0.12502]
[1728469357503,14.2625,142.86,142.85,0.12502]
[1728469366811,3.5025,142.86,142.85,0.12502]
[1728469367211,14.2625,142.86,142.85,0.12502]
[1728469369913,3.5025,142.86,142.85,0.12502]
[1728469370119,14.2625,142.86,142.85,0.12502]
[1728469374317,3.5025,142.86,142.85,0.12502]
[1728469374511,14.2625,142.86,142.85,0.12502]
[1728469379722,3.5025,142.86,142.85,0.12502]
[1728469379925,14.2625,142.86,142.85,0.12502]
[1728469383227,3.5025,142.86,142.85,0.12502]
[1728469387333,14.2625,142.86,142.85,2e-05]
[1728469387728,15.51520151,142.86,142.85,2e-05]
[1728469389833,14.2625,142.86,142.85,2e-05]
[1728469392226,17.73797034,142.86,142.85,2e-05]
[1728469393236,17.73797034,142.86,142.79,0.12502]
[1728469393237,3.504,142.8,142.79,0.12502]
[1728469393438,8.464,142.8,142.79,0.12502]
[1728469393832,8.464,142.8,142.79,2e-05]
[1728469396043,3.5055,142.74,142.73,0.12502]
[1728469398234,14.2655,142.74,142.73,0.12502]
[1728469400239,14.2655,142.74,142.67,0.12502]
[1728469400443,3.5069,142.68,142.67,0.12502]
[1728469401650,4.94,142.71,142.67,10.88502]
[1728469401844,1.3905,142.77,142.67,10.88502]
[1728469402067,10.76,142.73,142.67,10.88502]
[1728469402247,15.7,142.73,142.67,10.88502]
[1728469402731,10.76,142.73,142.67,10.88502]
[1728469402931,15.7,142.73,142.67,10.88502]
[1728469403137,99.48469342,142.77,142.67,10.88502]
[1728469403340,3.5068,142.69,142.67,10.88502]
[1728469403534,15.7,142.73,142.67,10.88502]
[1728469403942,99.48469342,142.77,142.69,10.76]
[1728469404243,10.76,142.75,142.7,12.107]
[1728469405145,3.5064,142.71,142.7,1.347]
[1728469409743,10.76,142.73,142.68,1.3426]
[1728469409948,3.5067,142.69,142.68,1.3426]
[1728469412148,7.0107,142.75,142.68,1.3426]
[1728469412149,3.5066,142.7,142.68,12.1026]
[1728469412359,3.5066,142.7,142.69,10.76]
[1728469415253,3.5067,142.69,142.68,12.1026]
[1728469415450,3.5067,142.69,142.68,1.3426]
[1728469416551,10.76,142.71,142.67,0.12502]
[1728469416743,3.5069,142.68,142.67,0.12502]
[1728469424458,3.5069,142.68,142.67,10.88502]
[1728469426253,3.5069,142.68,142.67,0.12502]
[1728469432661,3.5069,142.68,142.67,10.88502]
[1728469432864,3.5069,142.68,142.67,0.12502]
[1728469437653,0.12502,142.85,142.67,10.88502]
[1728469437861,12.01345889,142.84,142.73,0.12502]
[1728469438057,10.76,142.84,142.78,10.76]
[1728469438256,0.12502,142.85,142.78,10.76]
[1728469438463,10.76,142.84,142.78,10.76]
[1728469438659,3.5041,142.8,142.78,10.76]
[1728469438963,3.5041,142.8,142.79,10.76]
[1728469439267,3.5041,142.8,142.78,10.76]
[1728469440868,15.72,142.83,142.78,10.76]
[1728469441059,15.72,142.83,142.77,10.76]
[1728469442368,10.76,142.81,142.76,10.76]
[1728469442955,4.96,142.83,142.76,10.76]
[1728469442956,10.76,142.82,142.76,10.76]
[1728469443365,3.5042,142.8,142.78,10.76]
[1728469445962,3.5045,142.78,142.74,12.5828]
[1728469446267,3.5045,142.78,142.77,10.76]
[1728469450671,3.5044,142.79,142.77,10.76]
[1728469450972,10.76,142.82,142.77,10.76]
[1728469451370,3.5044,142.79,142.77,10.76]
[1728469452877,3.5045,142.78,142.77,10.76]
[1728469456767,10.76,142.82,142.76,10.76]
[1728469456974,3.5048,142.77,142.76,10.76]
[1728469458476,3.5043,142.79,142.76,10.76]
[1728469458670,4.96,142.8,142.78,10.76]
[1728469459267,3.5042,142.79,142.78,10.76]
[1728469460478,8.4641,142.8,142.78,10.76]
[1728469460874,4.96,142.8,142.78,10.76]
[1728469462077,0.12502,142.85,142.79,10.76]
[1728469462297,0.12502,142.85,142.74,2.73]
[1728469462298,0.12502,142.85,142.84,10.76]
[1728469462577,3.503,142.84,142.82,10.76]
[1728469462889,0.12502,142.85,142.81,10.76]
[1728469463382,3.5033,142.83,142.81,10.76]
[1728469463584,0.12502,142.85,142.81,10.76]
[1728469464175,3.5034,142.83,142.81,10.76]
[1728469464378,10.88502,142.85,142.8,10.76]
[1728469464578,3.5037,142.82,142.79,10.76]
[1728469465380,10.88502,142.85,142.79,10.76]
[1728469465685,3.5038,142.81,142.8,10.76]
[1728469465886,10.88502,142.85,142.8,10.76]
[1728469466285,0.12502,142.85,142.8,10.76]
[1728469466490,3.5034,142.83,142.8,10.76]
[1728469466888,3.5034,142.83,142.82,10.76]
[1728469467375,3.5032,142.84,142.82,10.76]
[1728469468490,3.5032,142.84,142.83,10.76]
[1728469468794,3.62792,142.85,142.83,10.76]
[1728469469884,3.62792,142.85,142.84,10.76]
[1728469470388,0.12502,142.85,142.84,10.76]
[1728469471488,3.62782,142.85,142.84,10.76]
[1728469480598,0.12502,142.85,142.84,10.76]
[1728469482499,3.62782,142.85,142.84,10.76]
[1728469485809,0.12502,142.85,142.84,10.76]
[1728469487204,3.62782,142.85,142.84,10.76]
[1728469503122,0.12502,142.85,142.84,10.76]
[1728469503324,0.12502,142.85,77.095,7.69298539]
[1728469503325,86.50502,142.85,142.67,0.12502]
[1728469503630,10.76,142.68,142.64,3.22783509]
[1728469503932,10.76,142.65,142.61,25.94770077]
[1728469504216,3.5084,142.62,142.61,25.94770077]
[1728469507012,10.9884,142.62,142.61,25.94770077]
[1728469507419,10.9884,142.62,142.61,0.12502]
[1728469508521,3.5084,142.62,142.61,0.12502]
[1728469508909,10.9884,142.62,142.61,0.12502]
[1728469511426,3.5084,142.62,142.61,0.12502]
[1728469511626,10.9884,142.62,142.61,0.12502]
[1728469511927,3.5084,142.62,142.61,0.12502]
[1728469512226,10.9884,142.62,142.61,0.12502]
[1728469512422,3.5084,142.62,142.61,0.12502]
[1728469512622,10.9884,142.62,142.61,0.12502]
[1728469513531,12.23718202,142.62,142.61,0.12502]
[1728469513916,3.5084,142.62,142.61,0.12502]
[1728469514421,3.5084,142.62,142.61,16.96502]
[1728469517024,3.5084,142.62,142.61,0.12502]
[1728469519936,10.9884,142.62,142.61,0.12502]
[1728469520327,12.23727057,142.62,142.61,0.12502]
[1728469520726,10.9884,142.62,142.61,0.12502]
[1728469520924,29.07732011,142.62,142.61,0.12502]
[1728469521129,29.07732011,142.62,142.61,2e-05]
[1728469521535,29.07727757,142.62,142.61,2e-05]
[1728469524635,29.07727757,142.62,142.55,0.12502]
[1728469524636,3.5095,142.56,142.55,0.12502]
[1728469539251,14.2995,142.56,142.55,0.12502]
[1728469539444,3.5095,142.56,142.55,0.12502]
[1728469539639,14.2995,142.56,142.55,0.12502]
[1728469540450,3.5095,142.56,142.55,0.12502]
[1728469544053,7.08,142.59,142.55,0.12502]
[1728469544255,17.87,142.59,142.55,0.12502]
[1728469544450,7.08,142.59,142.55,0.12502]
[1728469544644,17.87,142.59,142.55,0.12502]
[1728469545457,3.5095,142.56,142.55,0.12502]
[1728469547856,3.5095,142.56,142.55,10.91502]
[1728469548752,3.5095,142.56,142.55,0.12502]
[1728469557268,7.08,142.59,142.55,10.91502]
[1728469557269,10.589,142.59,142.55,10.91502]
[1728469557568,10.79,142.61,142.55,10.91502]
[1728469557764,6.7,142.61,142.57,10.79]
[1728469558262,24.505,142.62,142.57,10.79]
[1728469558662,3.509,142.58,142.57,10.79]
[1728469559265,13.715,142.62,142.57,10.79]
[1728469559463,24.505,142.62,142.57,10.79]
[1728469559660,17.805,142.62,142.57,10.79]
[1728469560163,17.805,142.62,142.58,10.79]
[1728469560366,7.015,142.62,142.6,10.79]
[1728469560868,3.5083,142.61,142.6,10.79]
[1728469561058,7.015,142.62,142.58,10.79]
[1728469561463,3.5088,142.59,142.58,10.79]
[1728469562766,7.015,142.63,142.58,10.79]
[1728469562972,3.5087,142.6,142.58,10.79]
[1728469563772,4.8374,142.65,142.61,3.5083]
[1728469563968,0.12502,142.67,142.62,2.6807]
[1728469564169,0.12502,142.67,142.66,3.767]
[1728469564372,0.12502,142.67,142.62,6.1886]
[1728469564572,7.14002,142.67,142.65,10.79]
[1728469565070,7.015,142.67,142.65,10.79]
[1728469565571,7.015,142.71,142.65,10.79]
[1728469565769,7.015,142.71,142.67,3.767]
[1728469565971,7.015,142.71,142.63,3.5076]
[1728469566177,3.5065,142.69,142.67,3.767]
[1728469566570,3.5065,142.69,142.63,3.5076]
[1728469566786,3.5065,142.69,142.67,10.79]
[1728469568970,6.7,142.72,142.67,10.79]
[1728469569475,6.7,142.72,142.69,10.79]
[1728469570377,3.5063,142.7,142.69,10.79]
[1728469571267,3.5066,142.68,142.67,10.79]
[1728469571470,17.49,142.72,142.65,6.7]
[1728469571774,17.49,142.72,142.67,10.79]
[1728469571968,10.79,142.72,142.67,10.79]
[1728469572770,3.5066,142.68,142.67,10.79]
[1728469574983,10.79,142.72,142.67,10.79]
[1728469575177,3.5065,142.69,142.67,10.79]
[1728469575481,3.5065,142.69,142.68,10.79]
[1728469583391,3.5068,142.68,142.63,4.9055]
[1728469583580,3.5068,142.68,142.66,10.79]
[1728469585289,3.5068,142.68,142.67,10.79]
[1728469587427,10.79,142.71,142.63,8.0777]
[1728469587690,10.79,142.71,142.66,10.79]
[1728469588098,3.5069,142.67,142.66,10.79]
[1728469590813,24.62622,142.73,142.66,10.79]
[1728469590996,24.62622,142.73,142.63,7.7777]
[1728469590997,24.62622,142.73,142.67,10.79]
[1728469591391,3.5067,142.68,142.67,10.79]
[1728469596500,10.79,142.72,142.66,10.79]
[1728469596501,3.5072,142.67,142.66,10.79]
[1728469608317,24.62622,142.73,142.66,10.79]
[1728469608708,10.79,142.72,142.66,10.79]
[1728469608909,3.5071,142.67,142.66,10.79]
[1728469611509,10.79,142.7,142.62,2.6807]
[1728469611712,3.5078,142.65,142.64,10.79]
[1728469611920,17.17,142.69,142.62,2.6807]
[1728469612110,17.17,142.69,142.63,10.79]
[1728469612512,3.508,142.64,142.63,10.79]
[1728469620814,6.38,142.69,142.63,10.79]
[1728469621015,6.38,142.69,142.65,10.79]
[1728469621748,3.5074,142.66,142.63,3.5081]
[1728469621919,3.5074,142.66,142.65,10.79]
[1728469622115,6.38,142.69,142.65,10.79]
[1728469622319,3.5073,142.67,142.65,10.79]
[1728469623614,6.38,142.69,142.65,10.79]
[1728469623816,3.507,142.68,142.67,10.79]
[1728469625815,3.5068,142.69,142.67,10.79]
[1728469626019,16.83,142.72,142.67,10.79]
[1728469626220,10.79,142.71,142.62,4.0752]
[1728469626420,3.5071,142.68,142.66,10.79]
[1728469627127,6.04,142.72,142.67,10.79]
[1728469627330,6.04,142.72,142.69,10.79]
[1728469627824,6.04,142.72,142.68,10.79]
[1728469628164,3.5067,142.69,142.68,10.79]
[1728469629026,115.07527359,142.73,142.68,10.79]
[1728469629224,3.5065,142.7,142.68,10.79]
[1728469632534,3.5067,142.69,142.68,10.79]
[1728469633130,3.5067,142.69,142.62,4.0752]
[1728469633131,3.5079,142.64,142.62,4.0752]
[1728469633433,16.83,142.7,142.63,10.79]
[1728469634027,3.5076,142.66,142.63,10.79]
[1728469634237,3.5076,142.66,142.65,10.79]
[1728469636229,10.79,142.68,142.62,1.3565]
[1728469636430,6.04,142.7,142.61,10.91502]
[1728469636431,3.5081,142.63,142.61,10.91502]
[1728469636627,6.04,142.66,142.61,10.91502]
[1728469636929,3.5084,142.62,142.61,10.91502]
[1728469647337,3.5083,142.63,142.61,10.91502]
[1728469648737,3.5084,142.62,142.61,10.91502]
[1728469649845,16.83,142.66,142.61,10.91502]
[1728469650047,16.83,142.66,142.62,10.79]
[1728469650048,3.5079,142.64,142.62,10.79]
[1728469650347,16.83,142.66,142.61,10.91502]
[1728469650842,3.5081,142.63,142.61,10.91502]
[1728469655946,10.79,142.65,142.61,0.12502]
[1728469656154,3.5084,142.62,142.61,0.12502]
[1728469670074,3.5082,142.63,142.61,10.91502]
[1728469670274,3.5082,142.63,142.62,10.79]
[1728469686482,3.5082,142.63,142.61,0.12502]
[1728469686788,3.5082,142.63,142.62,10.79]
[1728469687186,5.78,142.66,142.61,0.12502]
[1728469687379,3.5084,142.62,142.61,0.12502]
[1728469688383,3.5092,142.59,142.55,0.12502]
[1728469688582,3.5092,142.59,142.58,10.79]
[1728469688881,5.6,142.62,142.55,0.12502]
[1728469689084,10.79,142.61,142.55,0.12502]
[1728469689273,10.79,142.59,142.55,0.12502]
[1728469689477,3.5098,142.56,142.55,0.12502]
[1728469695294,5.6,142.58,142.55,10.91502]
[1728469695295,3.5098,142.57,142.55,10.91502]
[1728469695488,5.6,142.58,142.55,10.91502]
[1728469696504,3.5098,142.56,142.55,10.91502]
[1728469696792,3.5098,142.56,142.55,0.12502]
[1728469696993,3.5098,142.56,142.55,10.91502]
[1728469698606,3.5098,142.56,142.55,0.12502]
[1728469698792,3.5098,142.56,142.55,10.91502]
[1728469699593,103.81759953,142.59,142.55,10.91502]
[1728469699899,3.5097,142.57,142.55,10.91502]
[1728469700398,3.5099,142.56,142.55,10.91502]
[1728469700595,103.81759953,142.59,142.55,10.91502]
[1728469701607,3.5098,142.57,142.55,10.91502]
[1728469701905,98.21759953,142.59,142.55,10.91502]
[1728469702091,3.5095,142.58,142.57,10.79]
[1728469704294,101.72679953,142.59,142.57,10.79]
[1728469704696,3.5092,142.59,142.57,10.79]
[1728469704908,3.5091,142.59,142.57,10.79]
[1728469705093,5.6,142.62,142.57,10.79]
[1728469705698,3.5093,142.59,142.57,10.79]
[1728469705896,5.6,142.62,142.57,10.79]
[1728469707598,3.5094,142.58,142.57,10.79]
[1728469708700,5.6,142.62,142.55,1.46882]
[1728469708896,5.6,142.62,142.57,10.79]
[1728469710205,3.5088,142.61,142.57,10.79]
[1728469710501,5.6,142.62,142.57,10.79]
[1728469711404,3.5094,142.58,142.57,10.79]
[1728469713603,5.6,142.62,142.57,10.79]
[1728469713816,3.5092,142.59,142.57,10.79]
[1728469714711,3.5094,142.58,142.57,10.79]
[1728469720414,0.12502,142.67,142.57,16.35]
[1728469720607,3.5086,142.62,142.58,1.3254]
[1728469720811,3.5086,142.62,142.59,1.3468]
[1728469721014,3.5086,142.62,142.61,10.79]
[1728469723419,3.5086,142.61,142.6,1.4325]
[1728469723620,3.5086,142.61,142.6,12.2225]
[1728469724307,10.79,142.63,142.58,1.3254]
[1728469724518,3.5096,142.57,142.56,6.9555]
[1728469724720,3.5096,142.57,142.56,17.7455]